[Event "Late-Titled-Tuesday-Blitz-October-03-2023"]
[Site "Chess.com"]
[Date "2023.10.03"]
[Round "6"]
[White "Grischuk"]
[Black "Lennis93"]
[Result "1-0"]
[WhiteElo "3001"]
[BlackElo "2711"]
[TimeControl "180+1"]
[EndTime "15:05:19 PDT"]
[Termination "Grischuk won by resignation"]

1. d4 {[%clk 0:03:00.9]} 1... Nf6 {[%clk 0:02:57.6]} 2. c4 {[%clk 0:03:01.2]}
2... b6 {[%clk 0:02:54]} 3. Nf3 {[%clk 0:02:57.3]} 3... Bb7 {[%clk 0:02:54.1]}
4. g3 {[%clk 0:02:57.8]} 4... Bxf3 {[%clk 0:02:53.4]} 5. exf3 {[%clk 0:02:58.7]}
5... e6 {[%clk 0:02:54]} 6. Bd3 {[%clk 0:02:53.3]} 6... Bb4+ {[%clk 0:02:53.8]}
7. Kf1 {[%clk 0:02:53.4]} 7... O-O {[%clk 0:02:53.4]} 8. a3 {[%clk 0:02:52.3]}
8... Be7 {[%clk 0:02:53.3]} 9. Nc3 {[%clk 0:02:52.7]} 9... d5 {[%clk 0:02:53.5]}
10. cxd5 {[%clk 0:02:49.7]} 10... Nxd5 {[%clk 0:02:49.8]} 11. Nxd5 {[%clk
0:02:47.7]} 11... exd5 {[%clk 0:02:50.7]} 12. h4 {[%clk 0:02:43.6]} 12... Nd7
{[%clk 0:02:46.6]} 13. Bc2 {[%clk 0:02:42.6]} 13... Re8 {[%clk 0:02:42.7]} 14.
Qd3 {[%clk 0:02:41.7]} 14... Nf8 {[%clk 0:02:42.8]} 15. b4 {[%clk 0:02:40.1]}
15... c6 {[%clk 0:02:41.3]} 16. Kg2 {[%clk 0:02:36.8]} 16... b5 {[%clk
0:02:39.7]} 17. Bd2 {[%clk 0:02:33.8]} 17... Qb6 {[%clk 0:02:35]} 18. g4 {[%clk
0:02:29.1]} 18... Bf6 {[%clk 0:02:34]} 19. Be3 {[%clk 0:02:29.3]} 19... a5
{[%clk 0:02:33.7]} 20. g5 {[%clk 0:02:29.4]} 20... Be7 {[%clk 0:02:33.7]} 21.
Bd2 {[%clk 0:02:24.2]} 21... axb4 {[%clk 0:02:33]} 22. axb4 {[%clk 0:02:25.1]}
22... Bd6 {[%clk 0:02:32.2]} 23. Ra5 {[%clk 0:02:19.1]} 23... Rxa5 {[%clk
0:02:23.8]} 24. bxa5 {[%clk 0:02:17.9]} 24... Qc7 {[%clk 0:02:21.4]} 25. Qf5
{[%clk 0:01:58.3]} 25... g6 {[%clk 0:02:19.9]} 26. Qg4 {[%clk 0:01:58.7]} 26...
b4 {[%clk 0:02:12]} 27. h5 {[%clk 0:01:55.3]} 27... Qxa5 {[%clk 0:02:11.5]} 28.
hxg6 {[%clk 0:01:50.3]} 28... fxg6 {[%clk 0:02:12.4]} 29. Be3 {[%clk 0:01:43.5]}
29... Qa2 {[%clk 0:02:06.7]} 30. Bb1 {[%clk 0:01:42.9]} 30... Qa7 {[%clk
0:02:04.7]} 31. f4 {[%clk 0:01:38.6]} 31... c5 {[%clk 0:01:46.1]} 32. f5 {[%clk
0:01:36.5]} 32... c4 {[%clk 0:01:46]} 33. fxg6 {[%clk 0:01:33.1]} 33... hxg6
{[%clk 0:01:42]} 34. Rh6 {[%clk 0:01:24]} 34... Qf7 {[%clk 0:01:11.6]} 35. Qh3
{[%clk 0:01:23.1]} 35... Qe6 {[%clk 0:01:11.1]} 36. Rh8+ {[%clk 0:01:04.9]}
36... Kf7 {[%clk 0:01:10.8]} 37. Qf3+ {[%clk 0:01:05.2]} 37... Ke7 {[%clk
0:01:07.3]} 38. Bf4 {[%clk 0:01:04.6]} 38... b3 {[%clk 0:00:58.2]} 39. Bxd6+
{[%clk 0:01:01.7]} 39... Qxd6 {[%clk 0:00:57.9]} 40. Rg8 {[%clk 0:00:59.4]}
40... Kd8 {[%clk 0:00:48.2]} 41. Qf7 {[%clk 0:00:40.4]} 41... Qe6 {[%clk
0:00:48.2]} 42. Rxf8 {[%clk 0:00:22.3]} 42... Qxf7 {[%clk 0:00:38.4]} 43. Rxf7
{[%clk 0:00:23.2]} 43... c3 {[%clk 0:00:38.5]} 44. Rf3 {[%clk 0:00:19.8]} 44...
c2 {[%clk 0:00:35.1]} 45. Bxc2 {[%clk 0:00:20.2]} 45... bxc2 {[%clk 0:00:36]}
46. Rc3 {[%clk 0:00:20.7]} 46... Re2 {[%clk 0:00:35.3]} 47. Kf3 {[%clk
0:00:19.9]} 47... Re6 {[%clk 0:00:10.9]} 48. Rxc2 {[%clk 0:00:19.7]} 48... Kd7
{[%clk 0:00:11.3]} 49. Re2 {[%clk 0:00:17.2]} 49... Ra6 {[%clk 0:00:10.9]} 50.
Kf4 {[%clk 0:00:15.1]} 50... Rb6 {[%clk 0:00:09.5]} 51. f3 {[%clk 0:00:10.6]}
51... Kd6 {[%clk 0:00:09.1]} 52. Ra2 {[%clk 0:00:09.9]} 52... Rc6 {[%clk
0:00:08.4]} 53. Ra8 {[%clk 0:00:09.8]} 53... Ke6 {[%clk 0:00:07.6]} 54. Rf8
{[%clk 0:00:09.3]} 54... Rc4 {[%clk 0:00:03]} 55. Rf6+ {[%clk 0:00:09.3]} 55...
Ke7 {[%clk 0:00:03.5]} 56. Ke5 {[%clk 0:00:09.5]} 56... Rc1 {[%clk 0:00:03.8]}
57. Rxg6 {[%clk 0:00:08.8]} 57... Re1+ {[%clk 0:00:03.2]} 58. Kxd5 {[%clk
0:00:09.3]} 58... Rg1 {[%clk 0:00:03.7]} 59. f4 {[%clk 0:00:09.3]} 59... Rg4
{[%clk 0:00:03.8]} 60. Ke5 {[%clk 0:00:09.2]} 60... Kf7 {[%clk 0:00:04.7]} 61.
Rf6+ {[%clk 0:00:09]} 61... Ke7 {[%clk 0:00:04.3]} 62. d5 {[%clk 0:00:09.9]}
62... Rg1 {[%clk 0:00:03.6]} 63. d6+ {[%clk 0:00:10.8]} 63... Ke8 {[%clk
0:00:03.2]} 64. Re6+ {[%clk 0:00:09.9]} 64... Kd8 {[%clk 0:00:03.1]} 65. Kf6
{[%clk 0:00:08.9]} 65... Rh1 {[%clk 0:00:03]} 66. f5 {[%clk 0:00:09.1]} 66...
Kd7 {[%clk 0:00:03.2]} 67. g6 {[%clk 0:00:10]} 67... Rg1 {[%clk 0:00:03.1]} 68.
g7 {[%clk 0:00:09.8]} 68... Rg5 {[%clk 0:00:03.8]} 69. Kxg5 {[%clk 0:00:09.8]}
1-0

[Event "Late-Titled-Tuesday-Blitz-October-03-2023"]
[Site "Chess.com"]
[Date "2023.10.03"]
[Round "6"]
[White "Cambek64"]
[Black "Sacbutt"]
[Result "1-0"]
[WhiteElo "2454"]
[BlackElo "2253"]
[TimeControl "180+1"]
[EndTime "15:05:19 PDT"]
[Termination "Cambek64 won by checkmate"]

1. b3 {[%clk 0:02:53.9]} 1... e5 {[%clk 0:02:57.1]} 2. Bb2 {[%clk 0:02:54.4]}
2... Nc6 {[%clk 0:02:57.1]} 3. e3 {[%clk 0:02:55]} 3... d5 {[%clk 0:02:56.2]} 4.
Bb5 {[%clk 0:02:53.6]} 4... Bd6 {[%clk 0:02:53.5]} 5. Nf3 {[%clk 0:02:54.1]}
5... Qe7 {[%clk 0:02:50.7]} 6. d4 {[%clk 0:02:54.6]} 6... exd4 {[%clk
0:02:47.3]} 7. Nxd4 {[%clk 0:02:49.1]} 7... Bd7 {[%clk 0:02:32]} 8. Nd2 {[%clk
0:02:24.6]} 8... Nf6 {[%clk 0:02:25.1]} 9. Qe2 {[%clk 0:02:16.6]} 9... Nxd4
{[%clk 0:02:17.9]} 10. Bxd7+ {[%clk 0:02:15.4]} 10... Qxd7 {[%clk 0:02:14.9]}
11. Bxd4 {[%clk 0:02:15.6]} 11... Qe7 {[%clk 0:02:10.8]} 12. O-O {[%clk
0:02:08.2]} 12... O-O {[%clk 0:02:09]} 13. Rad1 {[%clk 0:02:01.5]} 13... c5
{[%clk 0:02:02.9]} 14. Bxf6 {[%clk 0:02:00.7]} 14... Qxf6 {[%clk 0:02:01.9]} 15.
Nf3 {[%clk 0:01:59.2]} 15... Rad8 {[%clk 0:01:55]} 16. c4 {[%clk 0:01:53.8]}
16... dxc4 {[%clk 0:01:45.8]} 17. Qxc4 {[%clk 0:01:51.8]} 17... b6 {[%clk
0:01:43.8]} 18. Rd2 {[%clk 0:01:44.7]} 18... Bc7 {[%clk 0:01:38.7]} 19. Rfd1
{[%clk 0:01:40.8]} 19... Rxd2 {[%clk 0:01:37.8]} 20. Rxd2 {[%clk 0:01:34]} 20...
Rd8 {[%clk 0:01:37.2]} 21. Rxd8+ {[%clk 0:01:27.4]} 21... Qxd8 {[%clk
0:01:38.1]} 22. g3 {[%clk 0:01:24.7]} 22... h6 {[%clk 0:01:18.8]} 23. h4 {[%clk
0:01:20.8]} 23... g6 {[%clk 0:00:58.5]} 24. Kg2 {[%clk 0:01:20.2]} 24... Qa8
{[%clk 0:00:55.6]} 25. e4 {[%clk 0:01:18.6]} 25... Qd8 {[%clk 0:00:55]} 26. a4
{[%clk 0:01:14]} 26... Qd6 {[%clk 0:00:48.7]} 27. Ne1 {[%clk 0:01:06.9]} 27...
Qe5 {[%clk 0:00:37.7]} 28. Nd3 {[%clk 0:01:05.9]} 28... Qf6 {[%clk 0:00:32.1]}
29. Qd5 {[%clk 0:01:01]} 29... a5 {[%clk 0:00:26.2]} 30. Qd7 {[%clk 0:00:54.6]}
30... Qd8 {[%clk 0:00:25.2]} 31. Qxd8+ {[%clk 0:00:48.7]} 31... Bxd8 {[%clk
0:00:26.1]} 32. e5 {[%clk 0:00:45.7]} 32... g5 {[%clk 0:00:23.7]} 33. h5 {[%clk
0:00:38.7]} 33... Bc7 {[%clk 0:00:20.6]} 34. Kf3 {[%clk 0:00:37.4]} 34... f6
{[%clk 0:00:18.5]} 35. e6 {[%clk 0:00:30.6]} 35... f5 {[%clk 0:00:18.6]} 36. g4
{[%clk 0:00:26.6]} 36... fxg4+ {[%clk 0:00:12.5]} 37. Kxg4 {[%clk 0:00:22.8]}
37... Bd6 {[%clk 0:00:11.3]} 38. Kf5 {[%clk 0:00:17.9]} 38... Kg7 {[%clk
0:00:10.6]} 39. f3 {[%clk 0:00:17.3]} 39... Kg8 {[%clk 0:00:08.4]} 40. Nb2
{[%clk 0:00:14.1]} 40... Kf8 {[%clk 0:00:06.3]} 41. Nc4 {[%clk 0:00:14.4]} 41...
Bc7 {[%clk 0:00:05.1]} 42. Kg6 {[%clk 0:00:12.3]} 42... Ke7 {[%clk 0:00:05.5]}
43. Kxh6 {[%clk 0:00:12.9]} 43... Kxe6 {[%clk 0:00:06]} 44. Kxg5 {[%clk
0:00:11.3]} 44... Bd8+ {[%clk 0:00:05]} 45. Kg6 {[%clk 0:00:10.5]} 45... Kd5
{[%clk 0:00:03.8]} 46. h6 {[%clk 0:00:10.3]} 46... Ke6 {[%clk 0:00:03.1]} 47. h7
{[%clk 0:00:10.5]} 47... Bf6 {[%clk 0:00:04]} 48. Nxb6 {[%clk 0:00:10]} 48...
Bh8 {[%clk 0:00:03.4]} 49. Nc4 {[%clk 0:00:10.5]} 49... Kd5 {[%clk 0:00:03.3]}
50. Nxa5 {[%clk 0:00:09.6]} 50... Kd4 {[%clk 0:00:03.9]} 51. f4 {[%clk
0:00:09.7]} 51... Ke4 {[%clk 0:00:03.8]} 52. f5 {[%clk 0:00:09.8]} 52... Ke5
{[%clk 0:00:04.5]} 53. Nb7 {[%clk 0:00:09.1]} 53... c4 {[%clk 0:00:03.8]} 54.
bxc4 {[%clk 0:00:08.5]} 54... Kd4 {[%clk 0:00:03.4]} 55. c5 {[%clk 0:00:08]}
55... Kd5 {[%clk 0:00:03.6]} 56. a5 {[%clk 0:00:08.6]} 56... Kc6 {[%clk
0:00:04.5]} 57. a6 {[%clk 0:00:09.3]} 57... Kc7 {[%clk 0:00:04.8]} 58. f6 {[%clk
0:00:10.2]} 58... Kc6 {[%clk 0:00:04.9]} 59. f7 {[%clk 0:00:08.8]} 59... Bg7
{[%clk 0:00:05.8]} 60. Kxg7 {[%clk 0:00:07.3]} 60... Kb5 {[%clk 0:00:05.5]} 61.
f8=Q {[%clk 0:00:07.9]} 61... Kb4 {[%clk 0:00:06.4]} 62. Qd6 {[%clk 0:00:07.9]}
62... Ka3 {[%clk 0:00:07.3]} 63. c6+ {[%clk 0:00:08.4]} 63... Kb2 {[%clk
0:00:08.2]} 64. c7 {[%clk 0:00:09]} 64... Kc1 {[%clk 0:00:09.1]} 65. c8=Q+
{[%clk 0:00:09.2]} 65... Kb1 {[%clk 0:00:09]} 66. Qb6+ {[%clk 0:00:09.2]} 66...
Ka2 {[%clk 0:00:09.9]} 67. Qc2+ {[%clk 0:00:08.8]} 67... Ka3 {[%clk 0:00:10.5]}
68. Qcb3# {[%clk 0:00:09.2]} 1-0

[Event "Late-Titled-Tuesday-Blitz-October-03-2023"]
[Site "Chess.com"]
[Date "2023.10.03"]
[Round "6"]
[White "ural58"]
[Black "jaskol95"]
[Result "1-0"]
[WhiteElo "2531"]
[BlackElo "2629"]
[TimeControl "180+1"]
[EndTime "15:05:21 PDT"]
[Termination "ural58 won by checkmate"]

1. e4 {[%clk 0:03:00.9]} 1... d5 {[%clk 0:02:59.7]} 2. exd5 {[%clk 0:03:00.2]}
2... Nf6 {[%clk 0:03:00.3]} 3. d4 {[%clk 0:02:59.6]} 3... Bg4 {[%clk 0:03:00.4]}
4. f3 {[%clk 0:02:46.4]} 4... Bf5 {[%clk 0:03:00.7]} 5. g4 {[%clk 0:02:41.9]}
5... Bg6 {[%clk 0:03:01]} 6. c4 {[%clk 0:02:40.2]} 6... e6 {[%clk 0:02:57.6]} 7.
Nc3 {[%clk 0:02:39.6]} 7... exd5 {[%clk 0:02:58]} 8. g5 {[%clk 0:02:39.4]} 8...
Nfd7 {[%clk 0:02:58.7]} 9. cxd5 {[%clk 0:02:39.3]} 9... Be7 {[%clk 0:02:34.9]}
10. h4 {[%clk 0:02:37]} 10... h6 {[%clk 0:02:35.3]} 11. gxh6 {[%clk 0:02:35.3]}
11... gxh6 {[%clk 0:02:35.2]} 12. h5 {[%clk 0:02:33]} 12... Bh4+ {[%clk
0:02:28.1]} 13. Ke2 {[%clk 0:02:22.3]} 13... Qe7+ {[%clk 0:02:21.3]} 14. Be3
{[%clk 0:02:15.2]} 14... Bg5 {[%clk 0:02:16.5]} 15. Qd2 {[%clk 0:02:13.1]} 15...
Nb6 {[%clk 0:01:54.3]} 16. b3 {[%clk 0:01:45.1]} 16... Bf5 {[%clk 0:01:54.2]}
17. Re1 {[%clk 0:01:43.7]} 17... Bh4 {[%clk 0:01:20.9]} 18. Rxh4 {[%clk
0:00:51.4]} 18... Qxh4 {[%clk 0:01:21.8]} 19. Bf2 {[%clk 0:00:50.5]} 19... Qxh5
{[%clk 0:01:19.6]} 20. Kd1+ {[%clk 0:00:50.5]} 20... Kd8 {[%clk 0:01:07.4]} 21.
Qf4 {[%clk 0:00:48.8]} 21... N8d7 {[%clk 0:00:57.4]} 22. Nge2 {[%clk 0:00:40.4]}
22... Bg6 {[%clk 0:00:37.4]} 23. a4 {[%clk 0:00:35.4]} 23... Nxd5 {[%clk
0:00:31.7]} 24. Qh4+ {[%clk 0:00:21.4]} 24... N5f6 {[%clk 0:00:16.3]} 25. Nf4
{[%clk 0:00:20.5]} 25... Qg5 {[%clk 0:00:15.7]} 26. Bb5 {[%clk 0:00:13.7]} 26...
c6 {[%clk 0:00:14.5]} 27. Bc4 {[%clk 0:00:11.4]} 27... Kc7 {[%clk 0:00:12.1]}
28. Rg1 {[%clk 0:00:11.5]} 28... Qf5 {[%clk 0:00:12.6]} 29. Bd3 {[%clk
0:00:09.7]} 29... Qa5 {[%clk 0:00:11.6]} 30. Nxg6 {[%clk 0:00:08.7]} 30... fxg6
{[%clk 0:00:10]} 31. Bg3+ {[%clk 0:00:08.5]} 31... Kb6 {[%clk 0:00:09]} 32. Kc2
{[%clk 0:00:08.4]} 32... Nd5 {[%clk 0:00:08.8]} 33. Nxd5+ {[%clk 0:00:08.2]}
33... Qxd5 {[%clk 0:00:09.1]} 34. Bc4 {[%clk 0:00:06.5]} 34... Qf5+ {[%clk
0:00:08.8]} 35. Kb2 {[%clk 0:00:05.8]} 35... a6 {[%clk 0:00:08.1]} 36. d5 {[%clk
0:00:06]} 36... Ka7 {[%clk 0:00:08.2]} 37. Bf2+ {[%clk 0:00:06.1]} 37... c5
{[%clk 0:00:07.7]} 38. Qe7 {[%clk 0:00:04.5]} 38... Qe5+ {[%clk 0:00:08]} 39.
Qxe5 {[%clk 0:00:04.7]} 39... Nxe5 {[%clk 0:00:08.9]} 40. Bxc5+ {[%clk 0:00:05]}
40... b6 {[%clk 0:00:09.1]} 41. Bd4 {[%clk 0:00:05.3]} 41... Nxc4+ {[%clk
0:00:09.6]} 42. bxc4 {[%clk 0:00:05.6]} 42... Rac8 {[%clk 0:00:10.2]} 43. Bxh8
{[%clk 0:00:04.6]} 43... Rxh8 {[%clk 0:00:09.9]} 44. Rxg6 {[%clk 0:00:05.2]}
44... Rc8 {[%clk 0:00:09.4]} 45. Kc3 {[%clk 0:00:04.8]} 45... Rf8 {[%clk
0:00:09.1]} 46. Kd4 {[%clk 0:00:04.7]} 46... Rxf3 {[%clk 0:00:09.1]} 47. Rg7+
{[%clk 0:00:05.3]} 47... Ka8 {[%clk 0:00:09.1]} 48. d6 {[%clk 0:00:05.5]} 48...
Kb8 {[%clk 0:00:09.4]} 49. Kd5 {[%clk 0:00:05.8]} 49... Rf4 {[%clk 0:00:08.2]}
50. Rg8+ {[%clk 0:00:04.3]} 50... Kb7 {[%clk 0:00:08.4]} 51. d7 {[%clk
0:00:04.9]} 51... Rf5+ {[%clk 0:00:05.3]} 52. Ke6 {[%clk 0:00:04.6]} 52... Rc5
{[%clk 0:00:03.7]} 53. d8=Q {[%clk 0:00:05.1]} 53... Rc6+ {[%clk 0:00:04.4]} 54.
Kd5 {[%clk 0:00:05.2]} 54... Rc5+ {[%clk 0:00:04.8]} 55. Kd4 {[%clk 0:00:05.9]}
55... a5 {[%clk 0:00:05.6]} 56. Qa8+ {[%clk 0:00:04.9]} 56... Kc7 {[%clk
0:00:06]} 57. Rg7+ {[%clk 0:00:05.3]} 57... Kd6 {[%clk 0:00:06.5]} 58. Qd8+
{[%clk 0:00:05.6]} 58... Ke6 {[%clk 0:00:07.2]} 59. Qd7+ {[%clk 0:00:05.9]}
59... Kf6 {[%clk 0:00:08]} 60. Qe7+ {[%clk 0:00:06.2]} 60... Kf5 {[%clk
0:00:08.9]} 61. Qxc5+ {[%clk 0:00:05.7]} 61... bxc5+ {[%clk 0:00:08.9]} 62. Kxc5
{[%clk 0:00:05]} 62... h5 {[%clk 0:00:09.8]} 63. Rh7 {[%clk 0:00:05.2]} 63...
Kg6 {[%clk 0:00:10.1]} 64. Rxh5 {[%clk 0:00:05.7]} 64... Kxh5 {[%clk 0:00:10.7]}
65. Kb6 {[%clk 0:00:06.4]} 65... Kg6 {[%clk 0:00:11.6]} 66. c5 {[%clk 0:00:07]}
66... Kf7 {[%clk 0:00:12.5]} 67. c6 {[%clk 0:00:07.7]} 67... Ke6 {[%clk
0:00:13.4]} 68. Kb7 {[%clk 0:00:08.3]} 68... Kd5 {[%clk 0:00:14.3]} 69. c7
{[%clk 0:00:09]} 69... Kc5 {[%clk 0:00:14.8]} 70. c8=Q+ {[%clk 0:00:09.7]} 70...
Kb4 {[%clk 0:00:15.5]} 71. Qe8 {[%clk 0:00:10.3]} 71... Kc5 {[%clk 0:00:15.7]}
72. Qb5+ {[%clk 0:00:10.9]} 72... Kd6 {[%clk 0:00:16.3]} 73. Qxa5 {[%clk
0:00:11.5]} 73... Kd7 {[%clk 0:00:17.2]} 74. Qb6 {[%clk 0:00:11.4]} 74... Ke8
{[%clk 0:00:17.5]} 75. a5 {[%clk 0:00:11.6]} 75... Kd7 {[%clk 0:00:18.1]} 76. a6
{[%clk 0:00:12.3]} 76... Ke7 {[%clk 0:00:19]} 77. a7 {[%clk 0:00:13.1]} 77...
Kd7 {[%clk 0:00:19.9]} 78. Ka6 {[%clk 0:00:13.5]} 78... Ke7 {[%clk 0:00:20.8]}
79. a8=Q {[%clk 0:00:13.6]} 79... Kd7 {[%clk 0:00:21.7]} 80. Qaa7+ {[%clk
0:00:13.9]} 80... Kc8 {[%clk 0:00:21.6]} 81. Qbb8# {[%clk 0:00:14.6]} 1-0

[Event "Late-Titled-Tuesday-Blitz-October-03-2023"]
[Site "Chess.com"]
[Date "2023.10.03"]
[Round "6"]
[White "MikaelyanArman"]
[Black "Joshukid"]
[Result "1-0"]
[WhiteElo "2847"]
[BlackElo "2563"]
[TimeControl "180+1"]
[EndTime "15:05:35 PDT"]
[Termination "MikaelyanArman won by checkmate"]

1. e4 {[%clk 0:02:58.6]} 1... g6 {[%clk 0:02:54.7]} 2. h4 {[%clk 0:02:58.4]}
2... Bg7 {[%clk 0:02:52.2]} 3. h5 {[%clk 0:02:58]} 3... c6 {[%clk 0:02:52.7]} 4.
d4 {[%clk 0:02:57.2]} 4... d5 {[%clk 0:02:52.2]} 5. e5 {[%clk 0:02:57.6]} 5...
c5 {[%clk 0:02:49.9]} 6. dxc5 {[%clk 0:02:52.6]} 6... Bxe5 {[%clk 0:02:46.9]} 7.
Nf3 {[%clk 0:02:37.4]} 7... Bf6 {[%clk 0:02:46.9]} 8. c4 {[%clk 0:02:37.2]} 8...
Qa5+ {[%clk 0:02:39.6]} 9. Nc3 {[%clk 0:02:35.5]} 9... dxc4 {[%clk 0:02:33.4]}
10. Be3 {[%clk 0:02:04]} 10... Bg4 {[%clk 0:02:27.3]} 11. hxg6 {[%clk
0:01:53.3]} 11... hxg6 {[%clk 0:02:26.1]} 12. Rxh8 {[%clk 0:01:52.8]} 12... Bxh8
{[%clk 0:02:27]} 13. Rc1 {[%clk 0:01:48.6]} 13... Nc6 {[%clk 0:01:30.9]} 14.
Bxc4 {[%clk 0:01:45.6]} 14... Ne5 {[%clk 0:01:31.4]} 15. Be2 {[%clk 0:01:10.2]}
15... Nxf3+ {[%clk 0:01:26.8]} 16. Bxf3 {[%clk 0:01:11.1]} 16... Rd8 {[%clk
0:01:12.2]} 17. Qb3 {[%clk 0:01:10.7]} 17... Bxf3 {[%clk 0:01:11.7]} 18. gxf3
{[%clk 0:01:11.6]} 18... Qc7 {[%clk 0:01:04]} 19. Qa4+ {[%clk 0:01:00.6]} 19...
Qc6 {[%clk 0:01:02.9]} 20. Qxc6+ {[%clk 0:00:49.1]} 20... bxc6 {[%clk
0:01:02.3]} 21. b4 {[%clk 0:00:49.5]} 21... Bxc3+ {[%clk 0:01:00]} 22. Rxc3
{[%clk 0:00:50.4]} 22... a6 {[%clk 0:00:53.3]} 23. Ra3 {[%clk 0:00:49.5]} 23...
Ra8 {[%clk 0:00:52.8]} 24. Bd4 {[%clk 0:00:39.5]} 24... Nh6 {[%clk 0:00:15.4]}
25. Ke2 {[%clk 0:00:39.5]} 25... Nf5 {[%clk 0:00:15]} 26. Bc3 {[%clk 0:00:38.4]}
26... f6 {[%clk 0:00:14.9]} 27. f4 {[%clk 0:00:36.5]} 27... Kf7 {[%clk 0:00:15]}
28. Kd3 {[%clk 0:00:35]} 28... e6 {[%clk 0:00:14.4]} 29. Kc4 {[%clk 0:00:34.4]}
29... Ne7 {[%clk 0:00:14.5]} 30. Bd2 {[%clk 0:00:30.9]} 30... Nd5 {[%clk
0:00:15.1]} 31. Rh3 {[%clk 0:00:31]} 31... Kg7 {[%clk 0:00:15.1]} 32. Ra3 {[%clk
0:00:22]} 32... Nc7 {[%clk 0:00:14.4]} 33. Rd3 {[%clk 0:00:20.2]} 33... Nd5
{[%clk 0:00:15]} 34. a4 {[%clk 0:00:20.7]} 34... Rb8 {[%clk 0:00:14.2]} 35. Rb3
{[%clk 0:00:20.1]} 35... Nc7 {[%clk 0:00:13.2]} 36. Be3 {[%clk 0:00:14.5]} 36...
Rd8 {[%clk 0:00:13.1]} 37. Bd4 {[%clk 0:00:12.2]} 37... Rd5 {[%clk 0:00:13]} 38.
Rg3 {[%clk 0:00:05.8]} 38... Rf5 {[%clk 0:00:11.9]} 39. Be3 {[%clk 0:00:06.5]}
39... Rd5 {[%clk 0:00:11.8]} 40. Rg1 {[%clk 0:00:06.3]} 40... Kf7 {[%clk
0:00:11.1]} 41. Rh1 {[%clk 0:00:06.7]} 41... Kg7 {[%clk 0:00:11.7]} 42. Re1
{[%clk 0:00:06.9]} 42... Kf7 {[%clk 0:00:12.1]} 43. Rb1 {[%clk 0:00:07.6]} 43...
Kg7 {[%clk 0:00:12.2]} 44. Rh1 {[%clk 0:00:08]} 44... Rf5 {[%clk 0:00:09.4]} 45.
Rg1 {[%clk 0:00:05.8]} 45... Rd5 {[%clk 0:00:09.5]} 46. Rb1 {[%clk 0:00:05.7]}
46... Kf7 {[%clk 0:00:09.5]} 47. Ra1 {[%clk 0:00:03.8]} 47... Kg7 {[%clk
0:00:09.3]} 48. f3 {[%clk 0:00:03.9]} 48... Kf7 {[%clk 0:00:09.4]} 49. Rh1
{[%clk 0:00:04.1]} 49... Kg7 {[%clk 0:00:09.8]} 50. Rg1 {[%clk 0:00:04.8]} 50...
Kf7 {[%clk 0:00:09.8]} 51. Bd4 {[%clk 0:00:04.3]} 51... Rf5 {[%clk 0:00:07.3]}
52. Rg4 {[%clk 0:00:04.4]} 52... Rh5 {[%clk 0:00:05.9]} 53. Rg1 {[%clk
0:00:03.3]} 53... Rh3 {[%clk 0:00:06]} 54. Rf1 {[%clk 0:00:03.2]} 54... Rh4
{[%clk 0:00:06]} 55. Be3 {[%clk 0:00:03.5]} 55... g5 {[%clk 0:00:06.5]} 56. Rd1
{[%clk 0:00:03.5]} 56... Ke7 {[%clk 0:00:05.8]} 57. Kb3 {[%clk 0:00:02.4]} 57...
gxf4 {[%clk 0:00:05.9]} 58. Bd4 {[%clk 0:00:02.7]} 58... Rh3 {[%clk 0:00:05.8]}
59. Rd3 {[%clk 0:00:03.4]} 59... e5 {[%clk 0:00:06.1]} 60. Bc3 {[%clk
0:00:02.6]} 60... e4 {[%clk 0:00:06.7]} 61. Rd6 {[%clk 0:00:03.3]} 61... Rxf3
{[%clk 0:00:04.7]} 62. Kc4 {[%clk 0:00:02.2]} 62... e3 {[%clk 0:00:03.2]} 63.
Bxf6+ {[%clk 0:00:02.3]} 63... Ke8 {[%clk 0:00:02.3]} 64. Bh4 {[%clk 0:00:02.7]}
64... e2 {[%clk 0:00:02.4]} 65. Rd8+ {[%clk 0:00:03.1]} 65... Kf7 {[%clk
0:00:02.7]} 66. Rd7+ {[%clk 0:00:04]} 66... Kg6 {[%clk 0:00:02.4]} 67. Rxc7
{[%clk 0:00:04.4]} 67... Re3 {[%clk 0:00:03]} 68. Be1 {[%clk 0:00:03.8]} 68...
Re6 {[%clk 0:00:02.8]} 69. Kd3 {[%clk 0:00:03.2]} 69... f3 {[%clk 0:00:03]} 70.
Rd7 {[%clk 0:00:03.4]} 70... Kf5 {[%clk 0:00:03.5]} 71. Rd6 {[%clk 0:00:03.7]}
71... Rxd6+ {[%clk 0:00:02.5]} 72. cxd6 {[%clk 0:00:04.6]} 72... Ke6 {[%clk
0:00:03.2]} 73. Ke3 {[%clk 0:00:04.5]} 73... Kxd6 {[%clk 0:00:02.9]} 74. Kxf3
{[%clk 0:00:04.9]} 74... c5 {[%clk 0:00:03.4]} 75. b5 {[%clk 0:00:04.5]} 75...
axb5 {[%clk 0:00:03.6]} 76. axb5 {[%clk 0:00:05.4]} 76... Kc7 {[%clk 0:00:02.9]}
77. Ba5+ {[%clk 0:00:04.9]} 77... Kd6 {[%clk 0:00:03.6]} 78. Kxe2 {[%clk
0:00:05.6]} 78... c4 {[%clk 0:00:03.8]} 79. Bb4+ {[%clk 0:00:06.1]} 79... Kd5
{[%clk 0:00:04.1]} 80. Kd2 {[%clk 0:00:06.1]} 80... Kd4 {[%clk 0:00:04.4]} 81.
Kc2 {[%clk 0:00:06.5]} 81... c3 {[%clk 0:00:05.2]} 82. b6 {[%clk 0:00:06.1]}
82... Kc4 {[%clk 0:00:05.9]} 83. b7 {[%clk 0:00:06.8]} 83... Kxb4 {[%clk
0:00:06.7]} 84. b8=Q+ {[%clk 0:00:07.2]} 84... Ka3 {[%clk 0:00:07.6]} 85. Qb5
{[%clk 0:00:07.2]} 85... Ka2 {[%clk 0:00:08.5]} 86. Qa4# {[%clk 0:00:07.6]} 1-0